bitfinex/quotes_BTCUSD_20250718
["timestamp","ask_amount","ask_price","bid_price","bid_amount"]
[1752847395279,0.40638344,118850.0,118840.0,0.005]
[1752847395931,0.40325344,118850.0,118840.0,0.00702]
[1752847396163,0.40116344,118850.0,118840.0,0.05648085]
[1752847396580,0.40116344,118850.0,118840.0,0.05448085]
[1752847396795,0.40116344,118850.0,118840.0,0.04926085]
[1752847397016,0.40116344,118850.0,118840.0,0.21755435]
[1752847397017,0.26216344,118850.0,118840.0,0.21755435]
[1752847397233,0.40112344,118850.0,118840.0,0.23018888]
[1752847397494,0.40112344,118850.0,118840.0,0.28939146]
[1752847397695,0.40112344,118850.0,118840.0,0.27256275]
[1752847398113,0.40112344,118850.0,118840.0,0.23018902]
[1752847398314,0.39274962,118850.0,118840.0,0.22177435]
[1752847398446,0.39274962,118850.0,118840.0,0.23018895]
[1752847398659,0.39286962,118850.0,118840.0,0.23860348]
[1752847399057,0.39286962,118850.0,118840.0,0.23018895]
[1752847399058,0.6426663,118850.0,118840.0,0.23018895]
[1752847399741,0.67486521,118850.0,118840.0,0.05348085]
[1752847400837,0.67498521,118850.0,118840.0,0.05348085]
[1752847401196,0.67415219,118850.0,118840.0,0.05348085]
[1752847401430,0.64195328,118850.0,118840.0,0.05348085]
[1752847402573,0.64195328,118850.0,118840.0,0.05026085]
[1752847403121,0.64191328,118850.0,118840.0,0.05026085]
[1752847403568,0.64393328,118850.0,118840.0,0.05026085]
[1752847404010,0.64389328,118850.0,118840.0,0.05026085]
[1752847404225,0.70804199,118850.0,118840.0,0.05026085]
[1752847404630,0.70800199,118850.0,118840.0,0.05026085]
[1752847404989,0.70800199,118850.0,118840.0,0.05030085]
[1752847405652,0.71107199,118850.0,118840.0,0.01658085]
[1752847406686,0.72627199,118850.0,118840.0,0.01658085]
[1752847407299,1.54687746,118850.0,118840.0,0.01658085]
[1752847408603,1.06627199,118850.0,118840.0,0.01658085]
[1752847409277,0.84784328,118850.0,118840.0,0.01658085]
[1752847409449,0.50477328,118850.0,118840.0,0.01854085]
[1752847409672,0.50477328,118850.0,118840.0,0.04954085]
[1752847409673,0.64361328,118850.0,118840.0,0.04954085]
[1752847409878,0.64361328,118850.0,118840.0,0.01854085]
[1752847410318,0.64361328,118850.0,118840.0,0.03384085]
[1752847410556,0.64361328,118850.0,118840.0,0.04954085]
[1752847410773,0.64361328,118850.0,118840.0,0.03424085]
[1752847410983,0.3938166,118850.0,118840.0,0.01414417]
[1752847411975,0.3968866,118850.0,118840.0,0.01218417]
[1752847412418,0.45592954,118850.0,118840.0,0.01218417]
[1752847412847,0.3967266,118850.0,118840.0,0.01218417]
[1752847413488,0.3936566,118850.0,118840.0,0.01414417]
[1752847413699,0.89323207,118850.0,118840.0,0.00144]
[1752847413934,0.4281266,118850.0,118840.0,0.01598085]
[1752847416538,0.89323207,118850.0,118840.0,0.01598085]
[1752847416755,0.97899169,118850.0,118840.0,0.01598085]
[1752847417377,0.2580466,118850.0,118840.0,0.01598085]
[1752847417609,0.41759059,118850.0,118840.0,0.05363085]
[1752847417869,0.40917705,118850.0,118840.0,0.23033902]
[1752847418082,0.24089771,118850.0,118840.0,0.24716787]
[1752847418299,0.40917705,118850.0,118840.0,0.23033902]
[1752847418511,0.48574953,118850.0,118840.0,0.23033902]
[1752847418738,0.48574953,118850.0,118840.0,0.05054085]
[1752847418991,0.48776953,118850.0,118840.0,0.22724902]
[1752847419204,0.34920953,118850.0,118840.0,0.06737012]
[1752847419421,0.48772953,118850.0,118840.0,0.23566362]
[1752847419642,0.31945019,118850.0,118840.0,0.25249233]
[1752847419876,0.23336368,118850.0,118840.0,0.2639965]
[1752847420106,0.24177736,118850.0,118840.0,0.2639965]
[1752847420579,0.23336375,118850.0,118840.0,0.2639965]
[1752847420798,0.08551028,118850.0,118840.0,0.72910197]
[1752847421019,0.02401241,118870.0,118860.0,0.23984494]
[1752847421237,0.10952269,118870.0,118860.0,0.24180494]
[1752847421447,0.2574146,118870.0,118860.0,0.24489494]
[1752847421835,0.26582672,118870.0,118860.0,0.24489494]
[1752847422076,0.27423905,118870.0,118860.0,0.24489494]
[1752847422289,0.26582672,118870.0,118860.0,0.24689494]
[1752847422758,0.27423898,118870.0,118860.0,0.24689494]
[1752847423013,0.10952269,118870.0,118860.0,0.24689494]
[1752847423224,0.27423905,118870.0,118860.0,0.24689494]
[1752847423637,0.27423905,118870.0,118860.0,0.24654944]
[1752847424067,0.45090248,118870.0,118860.0,0.23813668]
[1752847424267,0.44249057,118870.0,118860.0,0.24689536]
[1752847424769,0.49182902,118870.0,118860.0,0.01654085]
[1752847425965,0.49182902,118870.0,118860.0,0.002]
[1752847426202,0.98853449,118870.0,118860.0,0.002]
[1752847427894,0.98853449,118870.0,118860.0,0.001]
[1752847428172,0.19353645,118840.0,118830.0,0.21753547]
[1752847428384,0.19353645,118840.0,118830.0,0.01454085]
[1752847428385,0.42299195,118840.0,118830.0,0.01454085]
[1752847428592,0.40666831,118840.0,118830.0,0.01454085]
[1752847428799,0.40157831,118840.0,118830.0,0.20163899]
[1752847429018,0.22503028,118840.0,118830.0,0.71906444]
[1752847429250,0.22507028,118840.0,118830.0,0.71906444]
[1752847429500,0.24189856,118840.0,118830.0,0.72106444]
[1752847429726,0.22507028,118840.0,118830.0,0.72406444]
[1752847429913,0.08551028,118840.0,118830.0,0.72406444]
[1752847430170,0.08551028,118840.0,118830.0,0.80982406]
[1752847430380,0.13948,118840.0,118830.0,0.80982406]
[1752847431042,0.23340431,118840.0,118830.0,0.72406444]
[1752847431256,0.22499028,118840.0,118830.0,0.72406444]
[1752847432349,0.25722559,118860.0,118850.0,0.23976123]
[1752847432576,0.08551028,118860.0,118850.0,0.7100867]
[1752847432794,0.04083658,118870.0,118860.0,0.20804494]
[1752847433011,0.25745467,118870.0,118860.0,0.70682041]
[1752847433269,0.2574546,118870.0,118860.0,0.71007041]
[1752847434146,0.26586665,118870.0,118860.0,0.71857188]
[1752847434386,0.27427877,118870.0,118860.0,0.71857188]
[1752847434616,0.26586665,118870.0,118860.0,0.71007041]
[1752847434833,0.26586658,118870.0,118860.0,0.71007041]
[1752847435050,0.27427877,118870.0,118860.0,0.71007041]
[1752847435268,0.2574546,118870.0,118860.0,0.71007041]
[1752847435709,0.27427898,118870.0,118860.0,0.71007041]
[1752847435933,0.27527898,118870.0,118860.0,0.71007041]
[1752847436157,0.28369138,118870.0,118860.0,0.24496494]
[1752847436397,0.49797715,118870.0,118860.0,0.24496522]
[1752847436831,0.32131308,118870.0,118860.0,0.25337805]
[1752847437071,0.32972548,118870.0,118860.0,0.26179081]
[1752847437289,0.28369138,118870.0,118860.0,0.26179081]
[1752847437513,0.45194241,118870.0,118860.0,0.23655232]
[1752847437741,0.45194241,118870.0,118860.0,0.25337819]
[1752847437944,0.46035496,118870.0,118860.0,0.26179095]
[1752847438455,0.25845467,118870.0,118860.0,0.26179095]
[1752847438783,0.26686679,118870.0,118860.0,0.26183095]
[1752847438988,0.25004269,118870.0,118860.0,0.26183095]
[1752847439195,0.25084269,118870.0,118860.0,0.72693642]
[1752847439629,0.22954546,118870.0,118860.0,0.72693642]
[1752847439827,0.00471518,118870.0,118860.0,1.06693642]
[1752847440297,0.14411518,118870.0,118860.0,1.06693642]
[1752847440969,0.14311518,118870.0,118860.0,1.06693642]
[1752847441266,0.14211518,118870.0,118860.0,1.15269604]
[1752847441722,0.14211518,118870.0,118860.0,1.15369604]
[1752847442213,0.14211518,118870.0,118860.0,1.06793642]
[1752847442417,0.00271518,118870.0,118860.0,1.06793642]
[1752847442838,0.14199518,118870.0,118860.0,1.06793642]
[1752847443046,0.00271518,118870.0,118860.0,1.06993642]
[1752847443458,0.00271518,118870.0,118860.0,1.0703132]
[1752847443700,0.00271518,118870.0,118860.0,1.15607282]
[1752847444576,0.00271518,118870.0,118860.0,1.29535282]
[1752847448094,0.00271518,118870.0,118860.0,0.60520773]
[1752847448285,0.00271518,118870.0,118860.0,1.0703132]
[1752847453295,0.20939128,118890.0,118880.0,1.04531786]
[1752847453296,0.14192,118890.0,118880.0,1.04531786]
[1752847453536,0.14192,118890.0,118880.0,1.04728786]
[1752847453721,0.14192,118890.0,118880.0,1.05057786]
[1752847453920,0.14192,118890.0,118880.0,1.13633748]
[1752847454818,0.14192,118890.0,118880.0,1.13308748]
[1752847455206,0.003,118890.0,118880.0,1.13633748]
[1752847455485,0.14192,118890.0,118880.0,1.13633748]
[1752847455702,0.003,118890.0,118880.0,1.13633748]
[1752847457623,0.23568085,118890.0,118880.0,1.01512786]
[1752847457844,0.24625156,118890.0,118880.0,1.01512786]
[1752847458057,0.22943028,118890.0,118880.0,1.01512786]
[1752847458719,0.22727028,118890.0,118880.0,1.05125461]
[1752847458925,0.22727028,118890.0,118880.0,1.04800461]
[1752847458926,0.23568077,118890.0,118880.0,1.04800461]
[1752847459128,0.22727028,118890.0,118880.0,1.11746423]
[1752847460450,0.22727028,118890.0,118880.0,0.65235876]
[1752847460569,0.23568085,118890.0,118880.0,1.11746423]
[1752847460785,0.22932028,118890.0,118880.0,0.55039914]
[1752847460998,0.22932028,118890.0,118880.0,1.03190461]
[1752847461754,0.22727028,118890.0,118880.0,1.03190461]
[1752847462851,0.22727028,118890.0,118880.0,0.56679914]
[1752847463109,0.22727028,118890.0,118880.0,1.01550461]
[1752847463291,0.22932028,118890.0,118880.0,1.01550461]
[1752847463523,0.22932028,118890.0,118880.0,1.0155046]
[1752847463968,0.22727028,118890.0,118880.0,1.11964422]
[1752847464192,0.22727028,118890.0,118880.0,1.0501846]
[1752847464406,0.14132,118890.0,118880.0,1.0501846]
[1752847465885,0.14124,118890.0,118880.0,1.0501846]
[1752847466350,0.003,118890.0,118880.0,1.0501846]
[1752847466559,0.003,118890.0,118880.0,1.13594422]
[1752847467858,0.003,118890.0,118880.0,0.67083875]
[1752847468082,0.003,118890.0,118880.0,1.13594422]
[1752847468306,0.003,118890.0,118880.0,0.80895875]
[1752847468515,0.003,118890.0,118880.0,1.27406422]
[1752847468720,0.003,118890.0,118880.0,1.27406421]
[1752847470680,0.003,118890.0,118880.0,0.80895874]
[1752847470931,0.003,118890.0,118880.0,1.27706421]
[1752847471144,0.003,118890.0,118880.0,1.13894421]
[1752847472965,0.00505,118890.0,118880.0,0.21339912]
[1752847473191,0.01664064,118890.0,118880.0,0.21142911]
[1752847473413,0.02505142,118890.0,118880.0,0.21142911]
[1752847473637,0.00823,118890.0,118880.0,0.67653458]
[1752847473867,0.01664057,118890.0,118880.0,0.55142911]
[1752847474131,0.01664057,118890.0,118880.0,1.01653458]
[1752847474653,0.27878428,118890.0,118880.0,0.53460621]
[1752847474881,0.31128505,118890.0,118880.0,0.00341672]
[1752847475097,0.31128505,118890.0,118880.0,0.18006536]
[1752847475328,0.31128505,118890.0,118880.0,0.01795757]
[1752847475530,0.31128505,118890.0,118880.0,0.20301805]
[1752847475979,0.31969562,118890.0,118880.0,0.21984124]
[1752847476180,0.1514729,118890.0,118880.0,0.22825215]
[1752847476413,0.32810675,118890.0,118880.0,0.2114294]
[1752847476864,0.1514729,118890.0,118880.0,0.22825215]
[1752847477076,0.1514729,118890.0,118880.0,0.69544762]
[1752847477077,0.10215077,118890.0,118880.0,0.69544762]
[1752847477282,0.26522332,118890.0,118880.0,0.23034215]
[1752847477489,0.26522325,118890.0,118880.0,0.69335762]
[1752847477713,0.25681219,118890.0,118880.0,0.69335762]
[1752847477978,0.24840141,118890.0,118880.0,0.69335762]
[1752847478193,0.09897077,118890.0,118880.0,0.69544762]
[1752847478415,0.24530134,118890.0,118880.0,0.69544762]
[1752847478636,0.09056028,118890.0,118880.0,0.78120724]
[1752847478866,0.003,118890.0,118880.0,1.07152762]
[1752847479083,0.141,118890.0,118880.0,1.07152762]
[1752847479321,0.1598712,118890.0,118880.0,1.03544762]
[1752847479504,0.15987106,118890.0,118880.0,1.03544762]
[1752847479742,0.15146049,118890.0,118880.0,1.03544762]
[1752847480461,0.15987106,118890.0,118880.0,1.03544762]
[1752847480689,0.14305,118890.0,118880.0,1.03544762]
[1752847481178,0.15146049,118890.0,118880.0,1.03544762]
[1752847481414,0.14305,118890.0,118880.0,1.03544762]
[1752847482287,0.003,118890.0,118880.0,1.15658724]
[1752847482499,0.14088,118890.0,118880.0,1.07082762]
[1752847483236,0.14088,118890.0,118880.0,1.55633899]
[1752847483981,0.14088,118890.0,118880.0,1.52095899]
[1752847484200,0.14293,118890.0,118880.0,1.04356057]
[1752847484424,0.14611,118890.0,118880.0,1.04356057]
[1752847484891,0.27924177,118890.0,118880.0,1.01832626]
[1752847485112,0.28765276,118890.0,118880.0,0.6806083]
[1752847485352,0.2792417,118890.0,118880.0,0.69514915]
[1752847485793,0.27083092,118890.0,118880.0,0.69514915]
[1752847486013,0.24742028,118890.0,118880.0,0.69514915]
[1752847486285,0.09056028,118890.0,118880.0,0.78299877]
[1752847486484,0.08851028,118890.0,118880.0,1.27628719]
[1752847486712,0.22619028,118890.0,118880.0,1.27628719]
[1752847487316,0.22615028,118890.0,118880.0,0.80512302]
[1752847487540,0.22820028,118890.0,118880.0,0.6860834]
[1752847489075,0.14064,118890.0,118880.0,0.6860834]
[1752847489319,0.14064,118890.0,118880.0,0.7193634]
[1752847489511,0.1406,118890.0,118880.0,1.0593634]
[1752847489666,0.1406,118890.0,118880.0,1.14512302]
[1752847490068,0.1406,118890.0,118880.0,1.0593634]
[1752847492269,0.1406,118890.0,118880.0,0.59521073]
[1752847492476,0.1406,118890.0,118880.0,1.0412834]
[1752847493199,0.14901049,118890.0,118880.0,1.0412834]
[1752847493449,0.14263,118890.0,118880.0,1.0260834]
[1752847493668,0.1406,118890.0,118880.0,1.0260834]
[1752847493885,0.003,118890.0,118880.0,1.11184302]
[1752847494093,0.1406,118890.0,118880.0,1.12814302]
[1752847494585,0.1406,118890.0,118880.0,1.0260934]
[1752847495483,0.1406,118890.0,118880.0,0.56194073]
[1752847495677,0.1406,118890.0,118880.0,1.0260934]
[1752847495931,0.1406,118890.0,118880.0,1.0578934]
[1752847496146,0.1406,118890.0,118880.0,1.0609134]
[1752847496369,0.1406,118890.0,118880.0,1.14667302]
[1752847496794,0.003,118890.0,118880.0,1.14667302]
[1752847497025,0.1406,118890.0,118880.0,1.14667302]
[1752847497674,0.003,118890.0,118880.0,1.14667302]
[1752847497891,0.1406,118890.0,118880.0,1.14667302]
[1752847499230,0.1406,118890.0,118880.0,0.59676073]
[1752847499469,0.1406,118890.0,118880.0,1.0609134]
[1752847499893,0.1406,118890.0,118880.0,1.06091339]
[1752847500788,0.15423057,118890.0,118880.0,0.55984072]
[1752847501025,0.26105249,118890.0,118880.0,0.20529987]
[1752847501270,0.34656291,118890.0,118880.0,0.20529987]
[1752847501501,0.34656284,118890.0,118880.0,0.68399339]
[1752847501943,0.27945156,118890.0,118880.0,0.68399339]
[1752847502203,0.28786234,118890.0,118880.0,0.68399339]
[1752847502837,0.23974077,118890.0,118880.0,0.68399339]
[1752847503048,0.23133028,118890.0,118880.0,0.68399339]
[1752847503255,0.23974077,118890.0,118880.0,0.68399339]
[1752847503467,0.24815134,118890.0,118880.0,0.68399339]
[1752847503669,0.25656205,118890.0,118880.0,0.68399339]
[1752847504110,0.24815134,118890.0,118880.0,0.68399339]
[1752847504321,0.25656205,118890.0,118880.0,0.68399339]
[1752847504541,0.23133028,118890.0,118880.0,0.77185301]
[1752847504784,0.09054028,118890.0,118880.0,1.11185301]
[1752847505010,0.22810028,118890.0,118880.0,1.11185301]
[1752847505481,0.003,118890.0,118880.0,1.02609339]
[1752847505686,0.14056,118890.0,118880.0,1.06071339]
[1752847509498,0.003,118890.0,118880.0,1.06071339]
[1752847509710,0.14056,118890.0,118880.0,1.06071339]
[1752847509949,0.14056,118890.0,118880.0,0.59656072]
[1752847510168,0.14056,118890.0,118880.0,1.13803449]
[1752847510802,0.14056,118890.0,118880.0,1.06071339]
[1752847511480,0.003,118890.0,118880.0,1.06071339]
[1752847511725,0.14056,118890.0,118880.0,1.06071339]
[1752847513569,0.14056,118890.0,118880.0,0.59656072]
[1752847513788,0.14056,118890.0,118880.0,1.06071339]
[1752847514219,0.14056,118890.0,118880.0,1.14647301]
[1752847515082,0.14056,118890.0,118880.0,1.05769339]
[1752847515295,0.14056,118890.0,118880.0,1.02609339]
[1752847515961,0.14056,118890.0,118880.0,1.05809339]
[1752847516221,0.14056,118890.0,118880.0,1.06111339]
[1752847517626,0.14056,118890.0,118880.0,0.59696072]
[1752847517848,0.14056,118890.0,118880.0,1.13847449]
[1752847521076,0.14056,118890.0,118880.0,1.6249228]
[1752847521239,0.14056,118890.0,118880.0,1.5475617]
[1752847521462,0.23971092,118890.0,118880.0,0.54529987]
[1752847521647,0.26170028,118890.0,118880.0,0.54529987]
[1752847521854,0.28693212,118890.0,118880.0,0.68060036]
[1752847522065,0.34563262,118890.0,118880.0,0.20529987]
[1752847522266,0.3540434,118890.0,118880.0,0.20529987]
[1752847522478,0.45018621,118890.0,118880.0,0.21984079]
[1752847522718,0.45018607,118890.0,118880.0,0.22825213]
[1752847523118,0.44177508,118890.0,118880.0,0.22825213]
[1752847523336,0.28693212,118890.0,118880.0,0.22825213]
[1752847523549,0.30375389,118890.0,118880.0,0.22825213]
[1752847523773,0.44674498,118890.0,118880.0,0.0034167]
[1752847524175,0.44674498,118890.0,118880.0,0.18538137]
[1752847524381,0.44674498,118890.0,118880.0,0.19379314]
[1752847524588,0.5325046,118890.0,118880.0,0.19379314]
[1752847524813,0.44674498,118890.0,118880.0,0.21061626]
[1752847525031,0.27852191,118890.0,118880.0,0.22725206]
[1752847525261,0.29534311,118890.0,118880.0,0.22725206]
[1752847525479,0.46356647,118890.0,118880.0,0.21042938]
[1752847525681,0.46356647,118890.0,118880.0,0.21884087]
[1752847525884,0.27852163,118890.0,118880.0,0.22525221]
[1752847526326,0.28693262,118890.0,118880.0,0.22625221]
[1752847526536,0.27852163,118890.0,118880.0,0.22625221]
[1752847526750,0.12419027,118890.0,118880.0,0.22625221]
[1752847526957,0.12419027,118890.0,118880.0,0.73004784]
[1752847526958,0.23131027,118890.0,118880.0,0.73004784]
[1752847527165,0.09062027,118890.0,118880.0,0.69261879]
[1752847527379,0.23131027,118890.0,118880.0,0.22625221]
[1752847527583,0.23131027,118890.0,118880.0,0.69059879]
[1752847527801,0.30162931,118890.0,118880.0,0.69059879]
[1752847528016,0.33355052,118890.0,118880.0,0.69059879]
[1752847528221,0.34895052,118890.0,118880.0,0.22625221]
[1752847528427,0.33212931,118890.0,118880.0,0.22625221]
[1752847528641,0.23131027,118890.0,118880.0,0.69059879]
[1752847529098,0.23972076,118890.0,118880.0,0.69059879]
[1752847529444,0.25654211,118890.0,118880.0,0.69059879]
[1752847529653,0.24813133,118890.0,118880.0,0.69059879]
[1752847529855,0.25654204,118890.0,118880.0,0.69059879]
[1752847530301,0.24813133,118890.0,118880.0,0.69059879]
[1752847530510,0.23131027,118890.0,118880.0,0.69059879]
[1752847530645,0.23972084,118890.0,118880.0,0.69059879]
[1752847530868,0.23131027,118890.0,118880.0,0.69059879]
[1752847531395,0.00304999,118890.0,118880.0,1.03261879]
[1752847531574,0.14056999,118890.0,118880.0,1.06765879]
[1752847533871,0.00304999,118890.0,118880.0,1.06765879]
[1752847534069,0.14056999,118890.0,118880.0,1.06765879]
[1752847534715,0.00304999,118890.0,118880.0,1.06765879]
[1752847534922,0.00304999,118890.0,118880.0,1.15341841]
[1752847535377,0.14056999,118890.0,118880.0,1.15341841]
[1752847536730,0.00304999,118890.0,118880.0,1.06765879]
[1752847539751,4e-05,118900.0,118890.0,0.20799612]
[1752847539961,4e-05,118900.0,118890.0,0.7093794]
[1752847540215,4e-05,118900.0,118890.0,0.24507281]
[1752847540395,4e-05,118900.0,118890.0,0.79517901]
[1752847541054,0.00104,118900.0,118890.0,0.79517901]
[1752847543155,0.0034,118910.0,118900.0,0.23887984]
[1752847543362,0.00867999,118910.0,118900.0,0.20835653]
[1752847543538,0.26313027,118910.0,118900.0,0.53381568]
[1752847543740,0.27153977,118910.0,118900.0,0.00037669]
[1752847543945,0.51525506,118910.0,118900.0,0.00037669]
[1752847544162,0.51525506,118910.0,118900.0,0.18540603]
[1752847544373,0.51525506,118910.0,118900.0,0.20494688]
[1752847544597,0.51525506,118910.0,118900.0,0.18540603]
[1752847544797,0.49843598,118910.0,118900.0,0.00037669]
[1752847545005,0.49843598,118910.0,118900.0,0.00137669]
[1752847545470,1.14782256,118910.0,118900.0,0.00437669]
[1752847545827,1.48782256,118910.0,118900.0,0.00437669]
[1752847546030,0.98506543,118900.0,118890.0,4e-05]
[1752847546205,0.18507562,118870.0,118860.0,0.003]
[1752847546409,0.4100859,118870.0,118860.0,0.003]
[1752847546623,0.4132559,118870.0,118860.0,0.17967829]
[1752847546824,0.4132559,118870.0,118860.0,0.17967843]
[1752847547026,0.4442559,118870.0,118860.0,0.21104543]
[1752847547228,0.4442559,118870.0,118860.0,0.21535031]
[1752847547229,0.10233466,118870.0,118860.0,0.21535031]
[1752847547434,0.00206,118870.0,118860.0,0.69423774]
[1752847547665,0.13744,118870.0,118860.0,0.69428773]
[1752847547890,0.1395,118870.0,118860.0,0.69428773]
[1752847548100,0.14267,118870.0,118860.0,0.22792115]
[1752847548337,0.17631848,118870.0,118860.0,0.22792115]
[1752847548556,0.16790608,118870.0,118860.0,0.22792115]
[1752847548770,0.15108191,118870.0,118860.0,0.22792115]
[1752847548995,0.23659219,118870.0,118860.0,0.22792115]
[1752847549415,0.08957028,118870.0,118860.0,0.69428773]
[1752847549627,0.13944,118870.0,118860.0,1.03428773]
[1752847549790,0.13744,118870.0,118860.0,1.05282773]
[1752847550005,0.13744,118870.0,118860.0,0.58848115]
[1752847550263,0.13744,118870.0,118860.0,0.58852115]
[1752847550414,0.1395,118870.0,118860.0,1.03432773]
[1752847550702,0.1395,118870.0,118860.0,1.03436773]
[1752847552390,0.22501028,118870.0,118860.0,1.03436773]
[1752847552827,0.44760849,118870.0,118860.0,0.17135517]
[1752847553034,0.44760849,118870.0,118860.0,0.01150317]
[1752847553035,0.47960899,118870.0,118860.0,0.01150317]
[1752847553236,0.4711968,118870.0,118860.0,0.00308999]
[1752847553769,0.47958986,118870.0,118860.0,0.00308999]
[1752847554015,0.4711968,118870.0,118860.0,0.00308999]
[1752847554220,0.4741968,118870.0,118860.0,0.00308999]
[1752847554420,0.4741968,118870.0,118860.0,0.01763084]
[1752847555268,0.93854338,118870.0,118860.0,0.01763084]
[1752847555511,1.14110338,118870.0,118860.0,0.00308999]
[1752847555724,0.4742368,118870.0,118860.0,0.00308999]
[1752847555931,0.4994988,118870.0,118860.0,0.00308999]
[1752847556100,0.4994988,118870.0,118860.0,0.01763084]
[1752847556323,0.4974988,118870.0,118860.0,0.01763084]
[1752847556575,0.4964988,118870.0,118860.0,0.01763084]
[1752847556697,0.48262062,118870.0,118860.0,0.01763084]
[1752847556909,0.48562062,118870.0,118860.0,0.01763084]
[1752847558013,1.2899672,118870.0,118860.0,7.302e-05]
[1752847558447,1.2899672,118870.0,118860.0,0.01461387]
[1752847558448,0.79950001,118870.0,118860.0,0.01461387]
[1752847558620,0.79966001,118870.0,118860.0,0.01461387]
[1752847559784,0.3051835,118870.0,118860.0,0.01461387]
[1752847559984,0.45135605,118870.0,118860.0,0.01461387]
[1752847560595,0.23978219,118870.0,118860.0,0.20811789]
[1752847560729,0.22939028,118870.0,118860.0,0.76028145]
[1752847561269,0.09151028,118870.0,118860.0,0.71005447]
[1752847561471,0.22935028,118870.0,118860.0,0.71005447]
[1752847562130,0.22935028,118870.0,118860.0,1.05005447]
[1752847562131,0.14384,118870.0,118860.0,1.05005447]
[1752847562345,0.006,118870.0,118860.0,0.58570789]
[1752847562551,0.14084,118870.0,118860.0,1.05005447]
[1752847562806,0.13884,118870.0,118860.0,1.13581409]
[1752847563145,0.13884,118870.0,118860.0,1.05005447]
[1752847563470,0.13784,118870.0,118860.0,0.58570789]
[1752847563712,0.13784,118870.0,118860.0,1.05105447]
[1752847564164,0.00841134,118880.0,118870.0,0.54802867]
[1752847564366,0.09605162,118880.0,118870.0,0.54802867]
[1752847564582,0.23385162,118880.0,118870.0,0.54802867]
[1752847564797,0.23385162,118880.0,118870.0,0.55008867]
[1752847564798,0.25067481,118880.0,118870.0,0.55008867]
[1752847565071,0.46438066,118880.0,118870.0,0.18279188]
[1752847565319,0.44755747,118880.0,118870.0,0.01454085]
[1752847565552,0.39662715,118880.0,118870.0,0.01454085]
[1752847566038,0.39662715,118880.0,118870.0,0.01458085]
[1752847566249,0.39662715,118880.0,118870.0,0.01558085]
[1752847566483,0.39662715,118880.0,118870.0,0.19124436]
[1752847566712,0.39862715,118880.0,118870.0,0.19965676]
[1752847567063,0.24518332,118880.0,118870.0,0.21854107]
[1752847567285,0.24518289,118880.0,118870.0,0.68288765]
[1752847567496,0.08851028,118880.0,118870.0,0.70201765]
[1752847567712,0.24305296,118880.0,118870.0,0.22167107]
[1752847567916,0.24305296,118880.0,118870.0,0.21854107]
[1752847568270,0.25146459,118880.0,118870.0,0.21854107]
[1752847568489,0.25146452,118880.0,118870.0,0.21854107]
[1752847568744,0.22523028,118880.0,118870.0,0.21854107]
[1752847568988,0.22323028,118880.0,118870.0,0.23707107]
[1752847569202,0.22423028,118880.0,118870.0,0.71671765]
[1752847570612,0.001,118880.0,118870.0,1.05671765]
[1752847570892,0.13852,118880.0,118870.0,1.05671765]
[1752847574241,0.10841289,118880.0,118870.0,0.53352782]
[1752847574483,0.23748148,118880.0,118870.0,0.53352782]
[1752847574724,0.22399028,118880.0,118870.0,0.67447525]
[1752847574943,0.22399028,118880.0,118870.0,0.69420525]
[1752847575163,0.22399028,118880.0,118870.0,0.6960644]
[1752847575388,0.22399028,118880.0,118870.0,0.71060525]
[1752847575805,0.22399028,118880.0,118870.0,0.24312867]
[1752847576039,0.22399028,118880.0,118870.0,0.71060525]
[1752847576245,0.22399028,118880.0,118870.0,0.79636487]
[1752847576481,0.22399028,118880.0,118870.0,0.71060525]
[1752847576713,0.001,118880.0,118870.0,1.05060525]
[1752847576929,0.13852,118880.0,118870.0,1.05060525]
[1752847579179,0.003,118890.0,118880.0,0.23851239]
[1752847579402,0.003,118890.0,118880.0,1.21618887]
[1752847579610,0.003,118890.0,118880.0,1.21935887]
[1752847579817,0.003,118890.0,118880.0,1.26935887]
[1752847580444,0.005,118890.0,118880.0,1.26935887]
[1752847580824,0.0034,118910.0,118900.0,0.20797984]
[1752847581025,0.14096,118910.0,118900.0,0.71531821]
[1752847581203,0.14096,118910.0,118900.0,0.71844821]
[1752847582534,0.14096,118910.0,118900.0,0.71223642]
[1752847582736,0.14096,118910.0,118900.0,0.71423642]
[1752847583630,0.14088,118910.0,118900.0,0.71423642]
[1752847583846,0.0004,118920.0,118910.0,0.57986358]
[1752847584063,0.14007412,118920.0,118910.0,1.01231016]
[1752847584282,0.14007412,118920.0,118910.0,0.55004358]
[1752847584522,0.14303412,118920.0,118910.0,0.54796358]
[1752847584746,0.15144256,118920.0,118910.0,0.54796358]
[1752847585007,0.14007412,118920.0,118910.0,0.6358032]
[1752847585230,0.13800412,118920.0,118910.0,1.12037978]
[1752847585889,0.16529988,118920.0,118910.0,0.6368032]
[1752847586104,0.34484889,118920.0,118910.0,0.54055436]
[1752847586327,0.34484889,118920.0,118910.0,0.52373528]
[1752847586328,0.42195122,118920.0,118910.0,0.52373528]
[1752847586553,0.44494256,118920.0,118910.0,0.001]
[1752847586982,0.44494256,118920.0,118910.0,0.003]
[1752847587195,0.44494256,118920.0,118910.0,0.17960408]
[1752847587416,0.44494256,118920.0,118910.0,0.19414493]
[1752847587627,0.10784186,118920.0,118910.0,0.20996358]
[1752847587845,0.2453615,118920.0,118910.0,0.20796358]
[1752847588063,0.2453615,118920.0,118910.0,0.67331016]
[1752847588064,0.23695284,118920.0,118910.0,0.67331016]
[1752847588706,0.0859944,118920.0,118910.0,0.67539016]
[1752847588968,0.00048412,118920.0,118910.0,1.03154016]
[1752847589147,0.00048412,118920.0,118910.0,1.04764016]
[1752847589396,0.13792412,118920.0,118910.0,1.13339978]
[1752847589619,0.13792412,118920.0,118910.0,1.13343978]
[1752847589832,0.13792412,118920.0,118910.0,0.6690932]
[1752847590079,0.13792412,118920.0,118910.0,1.09910978]
[1752847591201,0.13792412,118920.0,118910.0,1.13493978]
[1752847592520,0.13792412,118920.0,118910.0,1.13701978]
[1752847594061,0.00048412,118920.0,118910.0,1.13701978]
[1752847594268,1e-08,118930.0,118920.0,0.23924731]
[1752847594500,1e-08,118930.0,118920.0,0.71488568]
[1752847594728,1e-08,118930.0,118920.0,0.71801568]
[1752847596233,1e-08,118930.0,118920.0,0.2536691]
[1752847596492,1e-08,118930.0,118920.0,0.72126807]
[1752847597369,1e-08,118930.0,118920.0,0.72626807]
[1752847599799,1e-08,118930.0,118920.0,0.72630807]
[1752847600023,0.0004,118940.0,118930.0,0.57883105]
[1752847600287,0.0004,118940.0,118930.0,1.21965753]
[1752847600526,0.0004,118940.0,118930.0,0.75531095]
[1752847600741,0.0004,118940.0,118930.0,1.21965753]
[1752847600988,0.00344,118950.0,118940.0,1.04466136]
[1752847601430,0.00344,118950.0,118940.0,0.58552478]
[1752847601673,0.00344,118950.0,118940.0,1.05908315]
[1752847601889,1e-08,118950.0,118940.0,1.05908315]
[1752847603189,1e-08,118950.0,118940.0,1.06008315]
[1752847605782,1e-08,118950.0,118940.0,1.19768315]